Workbook

Sheet Sheet1
A1: QuiBids Analysis
C2: The entertainment shopping industry
C4: Link to CEO interview
D5: I'm simultaneously sad that I didn't create this and
D6: horrified at how this industry exploits innummeracy.
D7: and calls it entertainment.
D8: (No link available: it’s been removed from the Inter-Webs. Hmmm.)
A10: Notes
B11: The company run "Events" where a product will be sold to the last "bidder" when time expires.
B13: Bids cost | F13: $ | G13: 0.6 | I13: No discount on bids in bulk! Even 800 bids cost $480.
B14: Auctions increment at | F14: $ | G14: 0.01 | I14: So each bid increases the "price" by 1 cent but gives QuiBids revenue of 60 cents.
B15: Each new bid adds | F15: seconds | G15: 5 | I15: It's 5 seconds by the end; more like 20 sec or 10 sec earlier on in the "auction."
B17: Seems to create a great gambling incentive because "pot odds" are always favorable: risk $0.60 for a $300 gain.
B19: Deal Dash vs. QuiBids anlaysis was totally wrong!
C20: Penny Auctions Blog
B22: Company revenue estimate:
C23: days | G23: 3
C24: auctions | G24: 485
C26: auctions per | F26: day | G26: =G24/G23 -> 161.6666667
C27: auctions per | F27: month | G27: =G26*30 -> 4850
C28: auctions per | F28: year | G28: =G27*12 -> 58200
B31: VERY INTERESTING FEATURE
C32: If you spend $60 on bids and te retail price is $200, you can buy at Retail - cost of bids,
C33: so you buy the item for $140
B35: BTW, the word "auction" is being being misused. Let's call it an "Event."
B37: Thus, Events can end in one of three ways for each participating bidder:
C38: 1 | D38: You win. You get to buy the item at the "final bid price."
C39: 2 | D39: You lose. You decide to buy the item at retail less the cost of your bids.
C40: 3 | D40: You lose. You cry yourself to sleep.
B43: How does this work out for the Company?
C45: 1 | D45: The company gets the revenue from the "bids." That's 100% gross margin.
C46: 2 | D46: The company loses money on the one winner when they buy the product
C47: 3 | D47: The company makes some money on the "auction" losers who purchase the product at Retail Minus.
E48: By the way, this excludes Bid Spoilage!
B49: Let's quantify:
D51: Product
E52: Retail Cost | F52: $ | G52: 500 | H52: 500 | I52: 500 | J52: 500 | K52: 9 | L52: 9 | M52: 9 | N52: 9
E53: Wholesale Cost | F53: $ | G53: 300 | H53: 300 | I53: 300 | J53: 300 | K53: 9 | L53: 9 | M53: 9 | N53: 9
D56: Event Results
E57: Bidders | F57: (none) | G57: 10 | H57: 10 | I57: 20 | J57: 20 | K57: 10 | L57: 2 | M57: 2 | N57: 2
E58: Final Price | F58: $ | G58: 25 | H58: 25 | I58: 25 | J58: 50 | K58: 6 | L58: 0.4 | M58: 0.4 | N58: 0.29
E60: Winners | G60: 1 | H60: 1 | I60: 1 | J60: 1 | K60: 1 | L60: 1 | M60: 1 | N60: 1
E61: Losers purchasing | F61: % losers | G61: 0.2 | H61: 0 | I61: 0.1 | J61: 0.05 | K61: 1 | L61: 1 | M61: 0 | N61: 1
E62: Losers purchasing | F62: (none) | G62: =(G57-G60)*G61 -> 1.8 | H62: =(H57-H60)*H61 -> 0 | I62: 1.9 | J62: 0.95 | K62: 9 | L62: 1 | M62: 0 | N62: 1
D64: Revenue from Bids
E65: Bids | F65: (none) | G65: =G58/$G$14 -> 2500 | H65: =H58/$G$14 -> 2500 | I65: 2500 | J65: 5000 | K65: =K58/$G$14 -> 600 | L65: 40 | M65: =M58/$G$14 -> 40 | N65: 29
E66: Bid Revenue | F66: $ | G66: =G65*$G$13 -> 1500 | H66: =H65*$G$13 -> 1500 | I66: 1500 | J66: 3000 | K66: 360 | L66: 24 | M66: 24 | N66: 17.4
D68: Revenue from Losers Purchasing
E69: Losers Purchasing | F69: (none) | G69: =G62 -> 1.8 | H69: =H62 -> 0 | I69: 1.9 | J69: 0.95 | K69: =K62 -> 9 | L69: 1 | M69: =M62 -> 0 | N69: 1
E70: Avg Bids | F70: $/per loser | G70: =G66/G57 -> 150 | H70: =H66/H57 -> 150 | I70: 75 | J70: 150 | K70: =K66/K57 -> 36 | L70: 12 | M70: =M66/M57 -> 12 | N70: 8.7
E71: Additional paid | F71: $/per loser | G71: =MAX(0,G52-G70) -> 350 | H71: =MAX(0,H52-H70) -> 350 | I71: 425 | J71: 350 | K71: 0 | L71: 0 | M71: 0 | N71: 0.3
E73: Additional Paid | F73: $ | G73: =G71*G69 -> 630 | H73: =H71*H69 -> 0 | I73: 807.5 | J73: 332.5 | K73: =K71*K69 -> 0 | L73: 0 | M73: =M71*M69 -> 0 | N73: 0.3
E74: Winner Pays | F74: $ | G74: =G58 -> 25 | H74: =H58 -> 25 | I74: 25 | J74: 50 | K74: 6 | L74: =L58 -> 0.4 | M74: 0.4 | N74: =N58 -> 0.29
D77: Total Revenue
E78: Bids | F78: $ | G78: =G66 -> 1500 | H78: =H66 -> 1500 | I78: 1500 | J78: 3000 | K78: =K66 -> 360 | L78: 24 | M78: =M66 -> 24 | N78: 17.4
E79: Product Purchase | F79: $ | G79: =G73+G74 -> 655 | H79: =H73+H74 -> 25 | I79: 832.5 | J79: 382.5 | K79: 6 | L79: =L73+L74 -> 0.4 | M79: 0.4 | N79: =N73+N74 -> 0.59
F80: $ | G80: =SUM(G78:G79) -> 2155 | H80: =SUM(H78:H79) -> 1525 | I80: 2332.5 | J80: 3382.5 | K80: 366 | L80: 24.4 | M80: 24.4 | N80: 17.99
D82: Product Cost
E83: Number Sold | F83: (none) | G83: =G60+G62 -> 2.8 | H83: =H60+H62 -> 1 | I83: 2.9 | J83: 1.95 | K83: =K60+K62 -> 10 | L83: 2 | M83: =M60+M62 -> 1 | N83: 2
E84: Cost | F84: $ | G84: =G53*G83 -> 840 | H84: =H53*H83 -> 300 | I84: 870 | J84: 585 | K84: 90 | L84: 18 | M84: 9 | N84: 18
D86: Gross Margin | F86: $ | G86: =G80-G84 -> 1315 | H86: =H80-H84 -> 1225 | I86: 1462.5 | J86: 2797.5 | K86: =K80-K84 -> 276 | L86: 6.4 | M86: =M80-M84 -> 15.4 | N86: -0.01
E87: % | F87: % | G87: =G86/G80 -> 0.6102088167 | H87: =H86/H80 -> 0.8032786885 | I87: 0.6270096463 | J87: 0.8270509978 | K87: 0.7540983607 | L87: 0.262295082 | M87: 0.631147541 | N87: -0.0005558643691
A91: Another interesting thing is that they have "Auctions" where the prize is 15 Bids.
B92: Very meta!
B93: What is the cost of a bid?
B94: While creating it costs $0, the bids have value in other auctions.
B95: It is NOT costless for QB to put more "Bid Units" into their economy.
A97: The paradox is that bids cost the company $0.60 if you look at it one way and $0.00 if you look at it another way.
B98: It's like how light is both a wave and a particle.
A100: Company Revenue and Profitability
D101: Avg Rev | F101: $ | G101: =(G80+L80)/2 -> 1089.7
D102: Avg GM | F102: $ | G102: =(G86+L86)/2 -> 660.7
F103: $ | G103: =G102/G101 -> 0.6063136643
D105: Annual
E106: Rev | F106: $ 000 | G106: =G101*$G$28/1000 -> 63420.54
E107: GM | F107: $ 000 | G107: =G102*$G$28/1000 -> 38452.74
A110: On top of this the company has rules about accounts only being able to win 12 times over a month or only for one expensive item a months
A111: but check this out: they have auctions allowing you to remove 4 recent wins from your total so you can win more.
A112: And people bid on this. I just saw one which sold ofr $6.20, meaning people spent over $360 in order to have the company change the rules for them!!!!!!
A113: Can you say 100% gross margin?
A114: Can you say a rigged game.
A115: I'm so jealous.
A118: http://www.cs.rpi.edu/~magdon/courses/casp/projects/Zaman.pdf

Sheet Sheet2

Sheet Sheet3
